bitfinex-derivatives/quotes_SOLF0:USTF0_20241206
["timestamp","ask_amount","ask_price","bid_price","bid_amount"]
[1733517488992,6.42431762,239.32,239.24,8.51031762]
[1733517489691,2.0858,239.27,239.24,8.51031762]
[1733517490684,6.42431762,239.28,239.21,2.16]
[1733517491490,6.42431762,239.28,239.2,8.51061762]
[1733517491884,2.6654,239.31,239.26,6.42431762]
[1733517492089,2.6654,239.31,239.24,6.42431762]
[1733517492991,9.08971762,239.31,239.24,6.42431762]
[1733517493888,2.0856,239.29,239.24,6.42431762]
[1733517494090,9.08971762,239.31,239.24,6.42431762]
[1733517494387,2.0858,239.27,239.24,6.42431762]
[1733517494694,2.0858,239.27,239.23,2.0861]
[1733517494695,6.42431762,239.25,239.19,6.42431762]
[1733517495085,2.0863,239.22,239.19,6.42431762]
[1733517495285,6.42431762,239.25,239.17,8.51091762]
[1733517495488,2.0863,239.21,239.17,8.51091762]
[1733517497592,2.0865,239.19,239.15,2.0868]
[1733517497895,6.42431762,239.23,239.14,6.42431762]
[1733517498089,6.42431762,239.21,239.14,6.42431762]
[1733517498494,2.0866,239.18,239.14,8.51121762]
[1733517499692,2.0866,239.18,239.16,6.42431762]
[1733517500398,2.0864,239.2,239.16,8.51101762]
[1733517500599,2.0864,239.2,239.13,2.16]
[1733517500600,6.42431762,239.25,239.18,6.42431762]
[1733517501098,2.16,239.26,239.2,6.42431762]
[1733517501700,2.0861,239.23,239.2,6.42431762]
[1733517503496,1.4158,239.3,239.2,6.42431762]
[1733517503699,6.42431762,239.29,239.2,6.42431762]
[1733517504091,6.42431762,239.29,239.22,6.42431762]
[1733517504692,2.0859,239.26,239.22,6.42431762]
[1733517509398,3.97298,239.33,239.28,2.0857]
[1733517509601,8.31199762,239.33,239.24,8.58431762]
[1733517509806,6.42431762,239.31,239.24,8.58431762]
[1733517510601,2.0857,239.29,239.25,2.0859]
[1733517518612,6.42431762,239.27,239.19,1.4076]
[1733517518908,6.42431762,239.27,239.18,6.42431762]
[1733517519106,6.42431762,239.27,239.19,2.0864]
[1733517520317,1.3087,239.31,238.99,9.7964394]
[1733517520318,6.42431762,239.2,238.99,9.7964394]
[1733517520519,2.16,239.19,238.99,9.7964394]
[1733517520815,8.51241762,239.0,238.99,9.7964394]
[1733517521211,8.51241762,239.0,238.99,4.6228994]
[1733517521511,8.51241762,239.0,238.99,1.2405994]
[1733517522720,12.17273534,239.0,238.99,1.2405994]
[1733517524412,2.0881,239.0,238.99,1.2405994]
[1733517524614,12.17273534,239.0,238.99,1.2405994]
[1733517541127,14.33273534,239.0,238.99,1.2405994]
[1733517544633,10.70237598,239.0,238.99,1.2405994]
[1733517548643,8.54237598,239.0,238.99,1.2405994]
[1733517548843,10.70237598,239.0,238.99,1.2405994]
[1733517550142,10.70237598,239.0,238.99,9.94e-05]
[1733517550338,54.22237598,239.0,238.99,9.94e-05]
[1733517550540,2.0901,238.78,238.7,2.66]
[1733517550741,2.34,238.82,238.7,4.7507]
[1733517550938,2.34,238.82,238.7,11.20497598]
[1733517550939,6.45427598,238.78,238.7,11.20497598]
[1733517551340,2.34,238.9,238.74,6.45427598]
[1733517551537,43.52,239.0,238.7,2.66]
[1733517551538,2.34,238.89,238.76,6.45427598]
[1733517551736,6.45427598,238.85,238.78,6.45427598]
[1733517551948,2.0895,238.85,238.78,6.45427598]
[1733517552147,2.34,238.96,238.77,1.2927]
[1733517552439,6.45427598,238.91,238.83,6.45427598]
[1733517552640,10.08487761,238.95,238.84,2.7067]
[1733517553445,10.08487761,238.95,238.84,4.7962]
[1733517553848,10.08487761,238.95,238.84,2.7067]
[1733517554147,12.17347761,238.95,238.85,2.0894]
[1733517554344,10.08487761,238.95,238.85,2.0894]
[1733517554745,10.08487761,238.95,238.84,2.7067]
[1733517554947,2.0887,238.94,238.86,2.0893]
[1733517555150,10.08487761,238.95,238.86,2.0893]
[1733517556251,10.08487761,238.95,238.87,2.0892]
[1733517556648,10.08487761,238.95,238.87,4.4292]
[1733517556846,12.17347761,238.95,238.87,4.4292]
[1733517557350,12.17347761,238.95,238.87,2.34]
[1733517557552,12.17347761,238.95,238.88,1.289]
[1733517557748,2.0887,238.93,238.88,1.289]
[1733517558349,10.08487761,238.92,238.88,1.289]
[1733517558749,2.089,238.9,238.84,2.7067]
[1733517558941,10.08487761,238.89,238.84,2.7067]
[1733517559445,10.08487761,238.86,238.84,2.7067]
[1733517560444,10.08487761,238.89,238.84,2.7067]
[1733517562144,2.34,238.93,238.84,2.7067]
[1733517562357,10.08487761,238.86,238.84,2.7067]
[1733517563753,2.0894,238.85,238.84,2.7067]
[1733517564755,2.0894,238.85,238.84,1.3023]
[1733517567356,12.17427761,238.86,238.84,1.3023]
[1733517567553,2.34,238.87,238.84,1.3023]
[1733517568755,10.08487761,238.89,238.84,1.3023]
[1733517570459,2.34,238.93,238.84,1.3023]
[1733517570754,7.71623035,238.92,238.84,1.3023]
[1733517570961,7.71623035,238.91,238.84,1.3023]
[1733517571161,10.08487761,238.93,238.84,1.3023]
[1733517571452,7.71682548,238.92,238.84,1.3023]
[1733517571657,9.80572548,238.91,238.84,3.3918]
[1733517571853,7.71682548,238.9,238.84,3.3918]
[1733517572060,10.08487761,238.93,238.84,3.3918]
[1733517572354,9.8078163,238.92,238.85,2.0894]
[1733517572757,2.0889,238.92,238.86,1.3114]
[1733517573857,7.72029844,238.91,238.86,1.3114]
[1733517574158,2.0889,238.92,238.86,1.3114]
[1733517574858,10.08487761,238.94,238.86,1.3114]
[1733517575058,10.08487761,238.94,238.86,3.4007]
[1733517575258,10.08487761,238.94,238.86,1.3114]
[1733517576362,2.0889,238.91,238.86,1.3114]
[1733517576856,10.08487761,238.94,238.86,1.3114]
[1733517577057,2.089,238.9,238.86,1.3114]
[1733517577565,2.0895,238.85,238.84,1.3023]
[1733517581759,10.08487761,238.88,238.84,1.3023]
[1733517581963,2.0894,238.86,238.84,1.3023]
[1733517583465,3.55021,239.04,238.84,1.3023]
[1733517583664,10.08487761,238.94,238.84,1.3023]
[1733517583858,10.08487761,238.91,238.84,1.3023]
[1733517584261,2.0891,238.89,238.84,1.3023]
[1733517585064,2.0892,238.88,238.81,2.0897]
[1733517585260,2.0892,238.88,238.82,1.2848]
[1733517586558,10.08487761,238.91,238.82,1.2848]
[1733517586559,2.0893,238.87,238.82,1.2848]
[1733517587766,2.0894,238.86,238.82,1.2848]
[1733517588970,10.08487761,238.91,238.82,1.2848]
[1733517589169,2.0892,238.89,238.83,2.0896]
[1733517589973,2.0892,238.89,238.84,2.0895]
[1733517590464,10.08487761,238.94,238.84,2.0895]
[1733517590666,2.0889,238.92,238.86,2.0893]
[1733517590860,6.45474617,238.93,238.86,2.0893]
[1733517591472,2.0889,238.91,238.86,2.0893]
[1733517591672,6.45474617,238.93,238.86,2.0893]
[1733517592668,2.0888,238.92,238.86,2.0893]
[1733517593774,13.63508761,239.04,238.85,6.45474617]
[1733517594072,8.54354617,238.93,238.85,8.81474617]
[1733517595876,8.54354617,238.93,238.87,2.0893]
[1733517596767,6.45474617,238.93,238.88,2.0892]
[1733517597879,8.54354617,238.93,238.88,2.0892]
[1733517603382,6.45474617,238.93,238.89,2.0891]
[1733517603579,6.45474617,238.93,238.85,8.81474617]
[1733517603785,6.45474617,238.93,238.89,2.0891]
[1733517603981,2.36,239.0,238.87,6.45474617]
[1733517604286,6.45474617,238.95,238.89,6.45474617]
[1733517604677,6.45474617,238.95,238.91,2.0888]
[1733517605277,2.0883,238.98,238.94,2.0887]
[1733517605487,6.45474617,238.98,238.91,6.45474617]
[1733517606782,2.0884,238.97,238.92,2.0888]
[1733517607387,6.45474617,238.98,238.93,2.0887]
[1733517608791,6.45474617,239.0,238.95,2.0885]
[1733517609488,3.55021,239.04,238.95,2.0885]
[1733517609687,8.54294617,239.0,238.95,2.0885]
[1733517612084,3.55021,239.04,238.96,2.22]
[1733517612282,3.55021,239.04,239.01,6.45474617]
[1733517612488,3.55021,239.04,239.01,8.67474617]
[1733517612890,6.45474617,239.11,239.03,6.45474617]
[1733517613294,2.0873,239.1,239.05,2.0876]
[1733517613792,6.45474617,239.11,239.05,2.0876]
[1733517613990,8.54194617,239.11,239.05,2.0876]
[1733517615889,2.0869,239.15,239.09,8.54204617]
[1733517616194,6.45474617,239.16,239.09,6.45474617]
[1733517617191,6.45474617,239.16,239.09,8.54204617]
[1733517617392,6.45474617,239.16,239.07,6.45474617]
[1733517618601,2.0869,239.15,239.08,2.0874]
[1733517618792,2.0869,239.15,239.07,6.45474617]
[1733517618793,2.0869,239.15,239.09,2.22]
[1733517619293,2.0869,239.14,239.09,2.22]
[1733517620490,2.0869,239.14,239.09,8.67474617]
[1733517621695,8.54154617,239.16,239.09,10.76204617]
[1733517621994,6.45474617,239.18,239.11,6.45474617]
[1733517622298,6.45474617,239.21,239.13,6.45474617]
[1733517622793,2.0866,239.18,239.13,6.45474617]
[1733517623094,6.45474617,239.23,239.15,6.45474617]
[1733517624598,2.0864,239.2,239.15,6.45474617]
[1733517625298,6.45474617,239.19,239.14,2.22]
[1733517625801,2.0865,239.19,239.14,8.67474617]
[1733517626401,2.0865,239.19,239.14,6.45474617]
[1733517626901,2.0866,239.18,239.14,6.45474617]
[1733517627198,6.45474617,239.22,239.14,6.45474617]
[1733517627398,2.0865,239.2,239.14,6.45474617]
[1733517628199,6.45474617,239.22,239.14,6.45474617]
[1733517628394,6.45474617,239.22,239.13,2.22]
[1733517628395,6.45474617,239.18,239.13,2.22]
[1733517628996,6.45474617,239.18,239.1,2.0873]
[1733517629197,6.45474617,239.18,239.1,2.22]
[1733517629397,6.45474617,239.18,239.09,8.67474617]
[1733517630303,2.0868,239.16,239.11,6.45474617]
[1733517630500,6.45474617,239.18,239.11,6.45474617]
[1733517630900,6.45474617,239.18,239.09,2.22]
[1733517630901,2.22,239.21,239.13,6.45474617]
[1733517631101,8.67474617,239.21,239.13,6.45474617]
[1733517633007,2.0865,239.19,239.13,6.45474617]
[1733517637710,2.0865,239.19,239.12,8.54184617]
[1733517638011,8.54124617,239.19,239.12,8.54184617]
[1733517638206,2.0866,239.18,239.12,6.45474617]
[1733517639310,2.0867,239.17,239.09,4.3073]
[1733517639509,2.0867,239.17,239.1,6.45474617]
[1733517639709,6.45474617,239.17,239.1,6.45474617]
[1733517640207,6.45474617,239.17,239.09,2.22]
[1733517640412,2.0869,239.14,239.09,2.22]
[1733517640806,2.0872,239.11,239.06,6.45474617]
[1733517642714,2.16,239.16,239.08,8.54214617]
[1733517642914,8.61474617,239.16,239.08,8.54214617]
[1733517643615,2.0869,239.14,239.08,8.54214617]
[1733517644615,8.61474617,239.16,239.05,2.16]
[1733517644813,8.61474617,239.16,239.08,6.45474617]
[1733517644814,2.087,239.13,239.08,6.45474617]
[1733517646417,6.70174617,239.16,239.08,6.45474617]
[1733517647716,2.087,239.13,239.08,6.45474617]
[1733517650519,2.087,239.13,239.1,6.45474617]
[1733517652426,2.0869,239.15,239.1,6.45474617]
[1733517653219,0.247,239.16,239.12,6.45474617]
[1733517654718,2.0868,239.15,239.12,6.45474617]
[1733517661326,10.65359899,239.14,239.12,6.45474617]
[1733517661517,2.087,239.14,239.12,6.45474617]
[1733517661718,10.6533007,239.13,239.12,6.45474617]
[1733517664120,10.6533007,239.13,239.05,2.16]
[1733517664323,10.6533007,239.12,239.03,1.3862]
[1733517664528,10.6533007,239.11,239.07,6.45474617]
[1733517664722,2.087,239.14,239.07,6.45474617]
[1733517664918,10.65126331,239.13,239.07,6.45474617]
[1733517665122,10.65126331,239.12,239.07,6.45474617]
[1733517665422,12.73856331,239.11,239.09,6.45474617]
[1733517665630,2.0873,239.11,239.09,6.45474617]
[1733517668528,10.6471959,239.1,239.09,6.45474617]
[1733517668726,2.0873,239.11,239.09,6.45474617]
[1733517669317,6.70174617,239.16,239.09,6.45474617]
[1733517669318,0.247,239.16,239.09,6.45474617]
[1733517669518,0.247,239.16,239.11,6.45474617]
[1733517670320,2.087,239.14,239.11,6.45474617]
[1733517671524,2.087,239.13,239.11,6.45474617]
[1733517672227,2.087,239.13,239.07,2.0875]
[1733517672427,2.087,239.13,239.11,6.45474617]
[1733517676432,2.087,239.13,239.06,2.0876]
[1733517676634,2.087,239.13,239.09,6.45474617]
[1733517676829,2.087,239.13,239.11,6.45474617]
[1733517678244,2.0871,239.12,239.11,6.45474617]
[1733517679347,0.247,239.16,239.11,6.45474617]
[1733517679546,10.65884024,239.15,239.11,6.45474617]
[1733517679746,10.65884024,239.14,239.11,6.45474617]
[1733517679947,0.247,239.16,239.11,6.45474617]
[1733517680147,10.65875334,239.15,239.11,6.45474617]
[1733517680448,10.65875334,239.14,239.09,6.45474617]
[1733517680647,0.247,239.16,239.09,6.45474617]
[1733517680648,2.0871,239.13,239.09,6.45474617]
[1733517681744,0.247,239.16,239.03,3.5462]
[1733517682050,0.247,239.16,239.11,6.45474617]
[1733517682051,10.66289681,239.15,239.11,6.45474617]
[1733517682347,10.66289681,239.14,239.11,6.45474617]
[1733517682540,0.247,239.16,239.11,6.45474617]
[1733517682739,10.66559965,239.15,239.11,6.45474617]
[1733517682938,0.247,239.16,239.11,6.45474617]
[1733517683146,10.66580415,239.15,239.11,6.45474617]
[1733517683349,0.247,239.16,239.11,6.45474617]
[1733517683541,10.66890733,239.15,239.11,6.45474617]
[1733517683741,0.247,239.16,239.11,6.45474617]
[1733517683939,10.66823417,239.15,239.11,6.45474617]
[1733517684143,0.247,239.16,239.11,6.45474617]
[1733517684348,10.66932471,239.15,239.11,6.45474617]
[1733517684645,2.087,239.13,239.11,6.45474617]
[1733517684846,2.087,239.13,239.08,6.45474617]
[1733517685352,10.67187069,239.12,239.08,6.45474617]
[1733517685651,2.087,239.13,239.08,6.45474617]
[1733517685853,10.67351614,239.12,239.08,6.45474617]
[1733517686151,2.087,239.13,239.08,6.45474617]
[1733517686450,10.67333711,239.12,239.08,6.45474617]
[1733517686652,2.087,239.13,239.08,6.45474617]
[1733517688052,10.67326022,239.12,239.08,6.45474617]
[1733517688245,2.087,239.13,239.08,6.45474617]
[1733517688652,2.087,239.13,239.07,2.0875]
[1733517688851,2.087,239.13,239.08,6.45474617]
[1733517690947,0.247,239.16,239.11,6.45474617]
[1733517691151,10.66969667,239.15,239.11,6.45474617]
[1733517691349,0.247,239.16,239.11,6.45474617]
[1733517692655,2.087,239.14,239.11,6.45474617]
[1733517696661,4.172,239.25,239.11,6.45474617]
[1733517696855,6.45474617,239.22,239.11,6.45474617]
[1733517697061,10.67111176,239.21,239.13,6.45474617]
[1733517697259,10.67111176,239.2,239.13,6.45474617]
[1733517697459,10.67111176,239.19,239.13,6.45474617]
[1733517697758,10.67111176,239.18,239.13,6.45474617]
[1733517698060,12.75791176,239.17,239.13,6.45474617]
[1733517698265,2.0868,239.17,239.13,6.45474617]
[1733517698659,10.67063689,239.16,239.13,6.45474617]
[1733517698860,2.0868,239.17,239.13,6.45474617]
[1733517699055,10.6708042,239.16,239.13,6.45474617]
[1733517699263,2.0868,239.17,239.13,6.45474617]
[1733517699464,10.67029452,239.16,239.13,6.45474617]
[1733517699659,2.0868,239.17,239.13,6.45474617]
[1733517699862,10.67008163,239.16,239.13,6.45474617]
[1733517700064,2.0868,239.17,239.13,6.45474617]
[1733517700265,10.66923826,239.16,239.13,6.45474617]
[1733517703963,10.66923826,239.16,239.15,6.45474617]
[1733517704163,2.16,239.24,239.15,6.45474617]
[1733517704469,4.171,239.31,239.12,2.16]
[1733517704470,10.66973979,239.23,239.17,6.45474617]
[1733517704668,10.66973979,239.22,239.17,6.45474617]
[1733517704868,10.66973979,239.21,239.17,6.45474617]
[1733517705063,10.66973979,239.2,239.17,6.45474617]
[1733517705271,2.0863,239.22,239.17,6.45474617]
[1733517705469,10.66667978,239.21,239.17,6.45474617]
[1733517705670,8.61474617,239.25,239.17,6.45474617]
[1733517705862,10.66632598,239.24,239.17,6.45474617]
[1733517706069,10.66632598,239.23,239.17,6.45474617]
[1733517706267,10.66632598,239.22,239.17,6.45474617]
[1733517706467,10.66632598,239.21,239.17,6.45474617]
[1733517706671,8.61474617,239.25,239.17,6.45474617]
[1733517706967,10.66313178,239.24,239.17,6.45474617]
[1733517707270,2.0863,239.22,239.17,6.45474617]
[1733517710373,2.0864,239.2,239.15,6.45474617]
[1733517713774,6.45474617,239.23,239.12,4.824]
[1733517714075,6.45474617,239.21,239.12,7.83774617]
[1733517714267,6.45474617,239.19,239.12,7.83774617]
[1733517714469,2.0868,239.16,239.12,7.83774617]
[1733517717475,2.0867,239.17,239.14,6.45474617]
[1733517719475,2.0867,239.18,239.14,6.45474617]
[1733517720774,2.16,239.2,239.11,1.3172]
[1733517720973,2.0867,239.18,239.13,6.45474617]
[1733517721770,10.65749145,239.17,239.15,6.45474617]
[1733517721972,12.53,239.39,239.15,6.45474617]
[1733517722169,17.11389442,239.29,239.21,6.45474617]
[1733517722372,6.45474617,239.27,239.18,6.45474617]
[1733517722576,10.65914825,239.26,239.18,6.45474617]
[1733517723079,6.45474617,239.25,239.17,6.45474617]
[1733517723272,10.65914825,239.24,239.19,6.45474617]
[1733517723473,10.65914825,239.23,239.19,6.45474617]
[1733517723673,10.65914825,239.22,239.19,6.45474617]
[1733517723876,10.65914825,239.21,239.19,6.45474617]
[1733517724080,2.0861,239.24,239.16,8.54144617]
[1733517724377,10.6588672,239.23,239.18,6.45474617]
[1733517724578,10.6588672,239.22,239.18,6.45474617]
[1733517724772,10.6588672,239.21,239.18,6.45474617]
[1733517724972,2.0861,239.24,239.18,6.45474617]
[1733517725170,10.65990114,239.23,239.18,6.45474617]
[1733517725373,10.65990114,239.22,239.18,6.45474617]
[1733517725573,8.61474617,239.27,239.18,6.45474617]
[1733517725868,6.45474617,239.25,239.18,6.45474617]
[1733517726072,10.65921785,239.24,239.18,6.45474617]
[1733517726277,10.65921785,239.23,239.18,6.45474617]
[1733517726574,1.3128,239.3,239.21,6.45474617]
[1733517726575,2.16,239.3,239.21,6.45474617]
[1733517726773,10.66085111,239.29,239.23,6.45474617]
[1733517726973,10.66085111,239.28,239.23,6.45474617]
[1733517727169,10.66085111,239.27,239.23,6.45474617]
[1733517727372,10.66085111,239.26,239.23,6.45474617]
[1733517727574,2.16,239.3,239.23,6.45474617]
[1733517727774,2.0858,239.28,239.23,6.45474617]
[1733517727978,10.65814487,239.27,239.23,6.45474617]
[1733517728181,2.0858,239.28,239.23,6.45474617]
[1733517728474,10.65433225,239.27,239.23,6.45474617]
[1733517728680,2.0858,239.28,239.23,6.45474617]
[1733517728975,2.0857,239.29,239.23,6.45474617]
[1733517730671,1.4021,239.37,239.25,6.45474617]
[1733517730877,6.45474617,239.34,239.27,6.45474617]
[1733517731077,10.64931397,239.33,239.27,6.45474617]
[1733517731573,6.45474617,239.35,239.27,6.45474617]
[1733517731879,12.73220893,239.34,239.27,6.45474617]
[1733517732081,2.0853,239.34,239.27,6.45474617]
[1733517732581,2.16,239.38,239.29,6.45474617]
[1733517732778,10.64189884,239.37,239.31,6.45474617]
[1733517732973,10.64189884,239.36,239.31,6.45474617]
[1733517733281,6.45474617,239.38,239.31,6.45474617]
[1733517733481,10.63550591,239.37,239.31,6.45474617]
[1733517733679,6.45474617,239.38,239.31,6.45474617]
[1733517733875,10.63472941,239.37,239.31,6.45474617]
[1733517734081,6.45474617,239.38,239.31,6.45474617]
[1733517735780,2.085,239.37,239.31,6.45474617]
[1733517737684,6.45474617,239.38,239.31,6.45474617]
[1733517737877,6.45474617,239.38,239.3,1.4142]
[1733517738076,6.45474617,239.38,239.3,7.86894617]
[1733517738277,6.45474617,239.34,239.29,1.2991]
[1733517738482,6.45474617,239.3,239.2,2.16]
[1733517738682,6.45474617,239.3,239.22,6.45474617]
[1733517739676,2.0858,239.27,239.22,2.0863]
[1733517739876,6.45474617,239.28,239.21,1.3547]
[1733517740774,1.3894,239.38,239.23,6.45474617]
[1733517740980,6.45474617,239.3,239.23,6.45474617]
[1733517741387,6.45474617,239.3,239.21,9.89574617]
[1733517742384,2.0859,239.26,239.21,7.80944617]
[1733517744580,6.45474617,239.28,239.21,7.80944617]
[1733517744785,6.45474617,239.26,239.21,1.3547]
[1733517745182,6.45474617,239.24,239.21,1.3547]
[1733517745579,2.0862,239.23,239.21,1.3547]
[1733517746188,6.45474617,239.26,239.21,1.3547]
[1733517746486,2.0861,239.24,239.21,1.3547]
[1733517747384,6.45474617,239.26,239.21,1.3547]
[1733517748682,2.0861,239.24,239.21,1.3547]
[1733517749183,6.45474617,239.26,239.21,1.3547]
[1733517749383,2.16,239.27,239.21,1.3547]
[1733517749588,6.45474617,239.31,239.23,6.45474617]
[1733517749789,2.0857,239.28,239.21,3.441]
[1733517750087,2.0857,239.28,239.23,6.45474617]
[1733517751891,6.45474617,239.31,239.21,3.441]
[1733517752084,10.6114511,239.3,239.22,6.45474617]
[1733517752290,6.45474617,239.29,239.22,6.45474617]
[1733517752792,5.54074617,239.29,239.21,1.3547]
[1733517753394,2.086,239.26,239.21,1.3547]
[1733517758393,2.16,239.32,239.24,6.45474617]
[1733517758697,10.62043732,239.31,239.24,6.45474617]
[1733517758897,8.61474617,239.32,239.24,6.45474617]
[1733517759099,2.0856,239.3,239.24,6.45474617]
[1733517761093,6.45474617,239.32,239.24,6.45474617]
[1733517761290,2.0855,239.31,239.26,6.45474617]
[1733517762389,6.45474617,239.3,239.22,2.726]
[1733517762597,6.45474617,239.3,239.23,6.45474617]
[1733517763596,2.0857,239.29,239.23,8.54084617]
[1733517764492,2.0857,239.28,239.23,8.54084617]
[1733517767895,6.45474617,239.3,239.23,6.45474617]
[1733517768089,2.0858,239.27,239.23,6.45474617]
[1733517769195,6.45474617,239.3,239.22,2.726]
[1733517769496,2.0861,239.24,239.22,1.3402]
[1733517769702,6.45474617,239.28,239.22,1.3402]
[1733517770397,6.45474617,239.24,239.12,1.3762]
[1733517770697,6.45474617,239.19,239.13,1.3053]
[1733517771603,2.0868,239.16,239.13,1.3053]
[1733517773506,2.0867,239.17,239.13,7.76004617]
[1733517777800,6.45474617,239.26,239.15,6.45474617]
[1733517778004,6.45474617,239.26,239.19,6.45474617]
[1733517778304,2.16,239.27,239.19,6.45474617]
[1733517778504,10.63179903,239.26,239.19,6.45474617]
[1733517778705,2.16,239.27,239.19,6.45474617]
[1733517778908,2.0862,239.24,239.19,6.45474617]
[1733517780507,2.0862,239.23,239.19,6.45474617]
[1733517782511,2.0862,239.23,239.17,6.45474617]
[1733517784117,6.45474617,239.22,239.14,6.45474617]
[1733517784311,6.45474617,239.2,239.14,6.45474617]
[1733517784511,6.45474617,239.2,239.13,1.3053]
[1733517786010,2.16,239.23,239.14,6.45474617]
[1733517786215,2.0865,239.19,239.14,6.45474617]
[1733517789621,2.6321,239.29,239.16,6.45474617]
[1733517789818,6.45474617,239.25,239.16,6.45474617]
[1733517790022,10.63710366,239.24,239.16,6.45474617]
[1733517790219,2.0863,239.22,239.16,6.45474617]
[1733517791027,2.0859,239.26,239.2,6.45474617]
[1733517791221,10.6378841,239.25,239.2,6.45474617]
[1733517791523,8.59474617,239.28,239.2,6.45474617]
[1733517791723,10.63987335,239.27,239.2,6.45474617]
[1733517791924,10.63987335,239.26,239.2,6.45474617]
[1733517792119,8.59474617,239.28,239.2,6.45474617]
[1733517792325,10.64108724,239.27,239.2,6.45474617]
[1733517792525,10.64108724,239.26,239.2,6.45474617]
[1733517792721,2.0861,239.25,239.2,6.45474617]
[1733517794223,6.45474617,239.28,239.2,6.45474617]
[1733517794421,2.0859,239.26,239.2,6.45474617]
[1733517794822,2.0859,239.26,239.13,3.4653]
[1733517794823,2.0859,239.26,239.22,6.45474617]
[1733517796831,8.59474617,239.31,239.24,6.45474617]
[1733517797026,10.64213975,239.3,239.22,6.45474617]
[1733517797227,8.59474617,239.31,239.22,6.45474617]
[1733517797426,2.0858,239.28,239.21,2.0863]
[1733517797732,6.45474617,239.22,239.13,1.3053]
[1733517797926,6.45474617,239.2,239.13,1.3053]
[1733517798431,2.0866,239.19,239.13,1.3053]
[1733517798828,6.45474617,239.2,239.13,1.3053]
[1733517799034,2.0866,239.18,239.13,1.3053]
[1733517799430,2.0866,239.18,239.14,6.45474617]
[1733517800232,8.59474617,239.22,239.14,6.45474617]
[1733517800428,2.0867,239.17,239.14,6.45474617]
[1733517801131,2.0868,239.16,239.14,6.45474617]
[1733517805237,8.59474617,239.22,239.14,6.45474617]
[1733517805536,2.0867,239.17,239.14,6.45474617]
[1733517806736,2.0868,239.16,239.14,6.45474617]
[1733517808437,2.0867,239.17,239.14,8.54164617]
[1733517819247,2.0866,239.18,239.15,2.0869]
[1733517820048,2.14,239.33,239.16,8.59474617]
[1733517820249,10.65739812,239.32,239.01,12.53]
[1733517820551,4.1712,239.3,239.09,6.45474617]
[1733517820855,13.26279812,239.29,239.09,6.45474617]
[1733517821148,6.45474617,239.18,239.09,6.45474617]
[1733517821348,8.61474617,239.18,239.09,6.45474617]
[1733517821745,2.087,239.14,239.09,6.45474617]
[1733517822643,2.16,239.18,239.09,6.45474617]
[1733517822844,1.3616,239.28,239.13,6.45474617]
[1733517822845,8.61474617,239.21,239.13,6.45474617]
[1733517823249,2.16,239.21,239.13,6.45474617]
[1733517824649,2.16,239.22,239.15,6.45474617]
[1733517825048,2.0863,239.22,239.15,6.45474617]
[1733517825254,2.0863,239.22,239.17,6.45474617]
[1733517825846,2.16,239.24,239.17,6.45474617]
[1733517826053,2.16,239.24,239.19,6.45474617]
[1733517826054,4.2461,239.24,239.19,6.45474617]
[1733517826653,10.65039501,239.23,239.19,6.45474617]
[1733517826855,4.2461,239.24,239.19,6.45474617]
[1733517827053,10.65054317,239.23,239.19,6.45474617]
[1733517827254,4.2461,239.24,239.19,6.45474617]
[1733517827461,12.73717508,239.23,239.19,6.45474617]
[1733517827754,2.0862,239.23,239.19,6.45474617]
[1733517827957,4.2461,239.24,239.19,6.45474617]
[1733517828159,10.65201341,239.23,239.19,6.45474617]
[1733517828456,4.2461,239.24,239.19,6.45474617]
[1733517828659,6.45474617,239.28,239.19,6.45474617]
[1733517828854,10.65283907,239.27,239.19,6.45474617]
[1733517829060,2.0861,239.25,239.19,6.45474617]
[1733517838265,2.0861,239.25,239.19,8.54124617]
[1733517840557,2.0861,239.25,239.19,2.0865]
[1733517840760,2.0862,239.23,239.17,2.0866]
[1733517840957,2.0862,239.23,239.16,1.3178]
[1733517840958,6.45474617,239.23,239.16,1.3178]
[1733517841473,2.0865,239.2,239.16,1.3178]
[1733517842960,6.45474617,239.21,239.12,6.45474617]
[1733517843160,6.45474617,239.18,239.11,4.8166]
[1733517843567,2.0869,239.16,239.11,4.8166]
[1733517844861,2.087,239.14,239.11,2.7294]
[1733517845070,6.45474617,239.16,239.11,2.7294]
[1733517845868,2.16,239.22,239.11,2.7294]
[1733517846164,6.45474617,239.2,239.11,2.7294]
[1733517846368,10.64221546,239.19,239.11,2.7294]